[Event "FIDE WCCC Open-10 2024"]
[Site "Montesilvano"]
[Date "2024.11.26"]
[Round "11.3"]
[White "Nguyen Quang Anh"]
[Black "Anand, Tsogtbileg"]
[Result "1-0"]
[Annotator "RC"]
[ECO "E20"]
[WhiteElo "1889"]
[BlackElo "1974"]
[PlyCount "118"]
[EventDate "2024.11.18"]
[EventType "swiss"]
[EventCountry "ITA"]
[SourceTitle "playchess.com"]
[Source "ChessBase"]
[SourceQuality "1"]
[TimeControl "5400+30"]

1. d4 {[%emt 0:00:04]} e6 {[%emt 0:05:00]} 2. c4 {[%emt 0:00:26]} Nf6 {[%emt 0:00:05]} 3. Nc3 {[%emt 0:00:28]} Bb4 {[%emt 0:00:09]} 4. f3 {[%emt 0:01:28]} c5 {[%emt 0:00:05]} 5. d5 {[%emt 0:00:29]} O-O {[%emt 0:01:33]} 6. Bg5 {[%emt 0:04:51]} h6 {[%emt 0:08:39]} 7. Bh4 {[%emt 0:01:26]} d6 {[%emt 0:04:45]} 8. e4 {[%emt 0:03:07]} e5 {[%emt 0:04:09]} 9. Bd3 {[%emt 0:03:59]} Nbd7 {[%emt 0:08:17]} 10. Nge2 {[%emt 0:03:01]} Re8 {[%emt 0:01:11]} 11. O-O {[%emt 0:01:01]} g5 {[%emt 0:01:42]} 12. Bf2 {[%emt 0:05:21]} Nf8 {[%emt 0:00:56]} 13. Be3 {[%emt 0:03:40]} Ng6 {[%emt 0:01:51]} 14. g3 {[%emt 0:05:36]} Nh5 {[%emt 0:03:59]} 15. Qd2 {[%emt 0:09:46]} Ng7 {[%emt 0:07:29]} 16. a3 {[%emt 0:07:33]} Ba5 {[%emt 0:04:25]} 17. Rab1 {[%emt 0:01:19]} Bc7 {[%emt 0:00:52]} 18. b4 {[%emt 0:02:58]} b6 {[%emt 0:00:21]} 19. bxc5 {[%emt 0:00:37]} bxc5 {[%emt 0:00:08]} 20. f4 {[%emt 0:04:05]} f6 {[%emt 0:07:23]} 21. f5 {[%emt 0:04:15]} Nf8 {[%emt 0:00:11]} 22. Bc2 {[%emt 0:01:17]} Ba5 {[%emt 0:04:02]} 23. Ba4 {[%emt 0:01:35]} Bd7 {[%emt 0:00:25]} 24. Qc2 {[%emt 0:00:15]} Bb6 {[%emt 0:05:20]} 25. Bc6 {[%emt 0:01:09]} Rb8 {[%emt 0:02:37]} 26. Qa4 {[%emt 0:01:21]} Re7 {[%emt 0:03:07]} 27. Rb2 {[%emt 0:04:36]} Ne8 {[%emt 0:01:24]} 28. Rfb1 {[%emt 0:01:07]} Nc7 {[%emt 0:00:50]} 29. Kg2 {[%emt 0:01:00]} Qc8 {[%emt 0:02:46]} 30. Bxc5 {[%emt 0:03:30]} dxc5 {[%emt 0:05:53]} 31. d6 {[%emt 0:00:14]} Rg7 {[%emt 0:00:56]} 32. Bxd7 {[%emt 0:01:05]} Nxd7 {[%emt 0:01:34]} 33. dxc7 {[%emt 0:00:11]} Qxc7 {[%emt 0:00:51]} 34. Nd5 {[%emt 0:00:46]} Qc8 {[%emt 0:00:27]} 35. g4 {[%emt 0:02:34]} h5 {[%emt 0:01:40]} 36. gxh5 {[%emt 0:00:58]} Rh7 {[%emt 0:00:23]} 37. Ng3 {[%emt 0:00:20]} Kh8 {[%emt 0:00:45]} 38. Rd1 {[%emt 0:01:32]} Bd8 {[%emt 0:01:03]} 39. Rbd2 {[%emt 0:00:39]} Rb7 {[%emt 0:01:54]} 40. Qa6 {[%emt 0:00:45]} Qb8 {[%emt 0:00:19]} 41. Qe6 {[%emt 0:00:56]} Nf8 {[%emt 0:00:24]} 42. Qc6 {[%emt 0:00:53]} Rhf7 {[%emt 0:01:39]} 43. Qxc5 {[%emt 0:00:52]} Nd7 {[%emt 0:00:01]} 44. Qc6 {[%emt 0:00:57]} Nb6 {[%emt 0:00:00]} 45. Qe8+ {[%emt 0:02:11]} Kh7 {[%emt 0:00:24]} 46. Ne3 {[%emt 0:00:31]} Rbe7 {[%emt 0:01:09]} 47. Qxd8 {[%emt 0:17:16]} Qxd8 48. Rxd8 {[%emt 0:00:00]} Rd7 {[%emt 0:00:00]} 49. R1xd7 {[%emt 0:00:00]} Rxd7 {[%emt 0:00:05]} 50. Rxd7+ {[%emt 0:00:00]} Nxd7 {[%emt 0:00:00]} 51. Kf3 {[%emt 0:00:00]} Nc5 {[%emt 0:00:05]} 52. Nd5 {[%emt 0:00:00]} Kg7 {[%emt 0:00:04]} 53. h6+ {[%emt 0:00:00]} Kxh6 {[%emt 0:00:04]} 54. Nxf6 {[%emt 0:00:00]} Kg7 {[%emt 0:00:00]} 55. Ng4 {[%emt 0:00:00]} Nd7 {[%emt 0:00:04]} 56. f6+ {[%emt 0:00:00]} Kg6 {[%emt 0:00:03]} 57. Nf5 {[%emt 0:00:00]} a5 {[%emt 0:00:04]} 58. Nd6 {[%emt 0:00:00]} Nc5 {[%emt 0:15:58]} 59. f7 {[%emt 0:00:00]} Kg7 {[%emt 0:00:00]} 1-0

[Event "FIDE WCCC Open-10 2024"]
[Site "Montesilvano"]
[Date "2024.11.26"]
[Round "11.12"]
[White "Deepak Ambattu, Rithvik"]
[Black "Cao, Frank Zhongtian"]
[Result "1/2-1/2"]
[Annotator "RC"]
[ECO "B92"]
[WhiteElo "2063"]
[BlackElo "1793"]
[PlyCount "144"]
[EventDate "2024.11.18"]
[EventType "swiss"]
[EventCountry "ITA"]
[SourceTitle "playchess.com"]
[Source "ChessBase"]
[SourceQuality "1"]
[TimeControl "5400+30"]

1. e4 {[%emt 0:01:27]} c5 {[%emt 0:00:06]} 2. Nf3 {[%emt 0:00:19]} d6 {[%emt 0:00:06]} 3. d4 {[%emt 0:00:03]} cxd4 4. Nxd4 {[%emt 0:00:02]} Nf6 {[%emt 0:00:13]} 5. Nc3 {[%emt 0:00:05]} a6 {[%emt 0:00:06]} 6. Be2 {[%emt 0:00:20]} e5 {[%emt 0:00:09]} 7. Nb3 {[%emt 0:00:48]} Be7 {[%emt 0:00:09]} 8. Be3 {[%emt 0:00:07]} Be6 {[%emt 0:00:10]} 9. Nd5 {[%emt 0:00:10]} Nbd7 {[%emt 0:00:09]} 10. Qd3 {[%emt 0:00:04]} O-O {[%emt 0:00:11]} 11. a4 {[%emt 0:01:23]} Bxd5 {[%emt 0:00:07]} 12. exd5 {[%emt 0:00:02]} Rc8 {[%emt 0:00:11]} 13. a5 {[%emt 0:03:34]} Ne8 {[%emt 0:06:19]} 14. O-O {[%emt 0:03:14]} g6 {[%emt 0:04:04]} 15. Ra4 {[%emt 0:09:41]} Ng7 {[%emt 0:13:31]} 16. Rb4 {[%emt 0:04:25]} Qc7 {[%emt 0:05:34]} 17. c4 {[%emt 0:07:37]} Nf5 {[%emt 0:01:14]} 18. Bb6 {[%emt 0:11:07]} Nxb6 {[%emt 0:04:56]} 19. axb6 {[%emt 0:00:30]} Qd7 {[%emt 0:15:09]} 20. Bg4 {[%emt 0:00:35]} Rfe8 {[%emt 0:02:35]} 21. Nd2 {[%emt 0:06:02]} Bd8 {[%emt 0:04:28]} 22. Re1 {[%emt 0:07:27]} Kh8 {[%emt 0:05:17]} 23. Ne4 {[%emt 0:03:15]} h5 {[%emt 0:02:14]} 24. Qh3 {[%emt 0:03:38]} Kg7 {[%emt 0:03:33]} 25. Bxf5 {[%emt 0:01:18]} gxf5 {[%emt 0:02:40]} 26. Ng3 {[%emt 0:02:55]} Rh8 {[%emt 0:03:34]} 27. Nxf5+ {[%emt 0:08:06]} Kf8 {[%emt 0:11:48]} 28. Ra1 {[%emt 0:09:32]} h4 {[%emt 0:05:24]} 29. Qg4 {[%emt 0:09:32]} Rh7 {[%emt 0:02:00]} 30. h3 {[%emt 0:00:46]} Rc5 {[%emt 0:02:15]} 31. Ne3 {[%emt 0:02:31]} Qxg4 {[%emt 0:00:26]} 32. hxg4 {[%emt 0:00:19]} Ke7 {[%emt 0:04:13]} 33. Rc1 {[%emt 0:05:31]} Kd7 {[%emt 0:00:23]} 34. Nf5 {[%emt 0:00:20]} Rh8 {[%emt 0:01:12]} 35. Kh2 {[%emt 0:00:44]} Bg5 {[%emt 0:01:03]} 36. Rc2 {[%emt 0:00:30]} Rhc8 {[%emt 0:01:10]} 37. g3 {[%emt 0:00:21]} hxg3+ {[%emt 0:00:10]} 38. Nxg3 {[%emt 0:00:26]} Rxd5 {[%emt 0:01:00]} 39. Ne4 {[%emt 0:00:37]} Bf4+ {[%emt 0:00:17]} 40. Kg2 {[%emt 0:00:11]} Rd4 {[%emt 0:00:37]} 41. Nf6+ {[%emt 0:00:18]} Ke7 {[%emt 0:00:26]} 42. Nh5 {[%emt 0:00:11]} d5 {[%emt 0:00:54]} 43. b3 {[%emt 0:00:26]} dxc4 {[%emt 0:00:42]} 44. Rbxc4 {[%emt 0:01:18]} Rcxc4 {[%emt 0:00:34]} 45. bxc4 {[%emt 0:00:08]} Kd6 {[%emt 0:00:59]} 46. c5+ {[%emt 0:00:45]} Kc6 {[%emt 0:00:24]} 47. Nxf4 {[%emt 0:00:16]} Rxf4 {[%emt 0:00:18]} 48. Kg3 {[%emt 0:01:02]} Rd4 {[%emt 0:00:16]} 49. g5 {[%emt 0:00:25]} Rd5 {[%emt 0:00:22]} 50. Kg4 {[%emt 0:00:31]} Rxc5 {[%emt 0:00:48]} 51. Re2 {[%emt 0:00:19]} Kxb6 {[%emt 0:00:31]} 52. Kf5 {[%emt 0:00:04]} Rc3 {[%emt 0:00:46]} 53. Kxe5 {[%emt 0:00:16]} a5 {[%emt 0:00:30]} 54. f4 {[%emt 0:00:09]} a4 {[%emt 0:00:41]} 55. f5 {[%emt 0:01:33]} Ka5 {[%emt 0:00:27]} 56. Kd4 {[%emt 0:00:42]} Rg3 {[%emt 0:00:29]} 57. Re7 {[%emt 0:00:29]} Rxg5 {[%emt 0:00:24]} 58. Rxb7 {[%emt 0:00:31]} Rxf5 {[%emt 0:00:11]} 59. Kc4 {[%emt 0:00:01]} Ka6 {[%emt 0:00:27]} 60. Rb8 {[%emt 0:00:26]} Ka7 {[%emt 0:00:30]} 61. Rb1 {[%emt 0:00:36]} Ra5 {[%emt 0:00:46]} 62. Kb4 {[%emt 0:00:29]} Ra6 {[%emt 0:00:19]} 63. Ka3 {[%emt 0:00:47]} f6 {[%emt 0:00:45]} 64. Rb4 {[%emt 0:00:40]} f5 {[%emt 0:00:23]} 65. Rb5 {[%emt 0:00:21]} Rf6 {[%emt 0:00:26]} 66. Kxa4 {[%emt 0:00:23]} f4 {[%emt 0:00:09]} 67. Rh5 {[%emt 0:00:35]} f3 {[%emt 0:00:17]} 68. Rh1 {[%emt 0:00:01]} f2 {[%emt 0:00:26]} 69. Rf1 {[%emt 0:00:03]} Kb6 {[%emt 0:00:25]} 70. Kb4 {[%emt 0:00:04]} Rf4+ {[%emt 0:00:12]} 71. Kc3 {[%emt 0:00:08]} Kc5 {[%emt 0:00:18]} 72. Kd3 {[%emt 0:00:06]} Kd5 {[%emt 0:00:09]} 1/2-1/2

[Event "FIDE WCCC Open-10 2024"]
[Site "Montesilvano"]
[Date "2024.11.26"]
[Round "11.38"]
[White "Friscic, Jakov"]
[Black "Ejsymont, Eryk"]
[Result "1/2-1/2"]
[Annotator "NA RC"]
[ECO "E32"]
[WhiteElo "1685"]
[BlackElo "1910"]
[PlyCount "72"]
[EventDate "2024.11.18"]
[EventType "swiss"]
[EventCountry "ITA"]
[SourceTitle "playchess.com"]
[Source "ChessBase"]
[SourceQuality "1"]
[TimeControl "5400+30"]

1. d4 {[%emt 0:00:01]} Nf6 {[%emt 0:00:12]} 2. c4 {[%emt 0:00:08]} e6 {[%emt 0:00:02]} 3. Nc3 {[%emt 0:00:06]} Bb4 {[%emt 0:00:06]} 4. Qc2 {[%emt 0:00:11]} O-O {[%emt 0:00:25]} 5. e4 {[%emt 0:00:25]} d6 {[%emt 0:00:06]} 6. Bd3 {[%emt 0:00:15]} Nc6 {[%emt 0:01:09]} 7. Nge2 {[%emt 0:01:27]} Ba5 {[%emt 0:00:16]} 8. a3 {[%emt 0:03:41]} Bb6 {[%emt 0:04:24]} 9. d5 {[%emt 0:12:58]} Ne5 {[%emt 0:02:33]} 10. O-O {[%emt 0:02:17]} exd5 {[%emt 0:00:52]} 11. exd5 {[%emt 0:01:25]} Nfg4 {[%emt 0:03:51]} 12. Bf4 {[%emt 0:08:51]} Ng6 {[%emt 0:07:55]} 13. Bg3 {[%emt 0:02:00]} f5 {[%emt 0:10:18]} 14. h3 {[%emt 0:04:39]} N4e5 {[%emt 0:00:31]} 15. Nf4 {[%emt 0:06:30]} Qg5 {[%emt 0:12:04]} 16. Nxg6 {[%emt 0:53:36]} hxg6 {[%emt 0:00:56]} 17. Bxe5 {[%emt 0:00:00]} dxe5 {[%emt 0:00:02]} 18. Kh2 {[%emt 0:00:00]} Qh4 {[%emt 0:05:15]} 19. Nb5 {[%emt 0:00:00]} c6 {[%emt 0:20:28]} 20. c5 {[%emt 0:00:00]} cxb5 {[%emt 0:01:27]} 21. cxb6 {[%emt 0:00:00]} f4 {[%emt 0:02:40]} 22. f3 {[%emt 0:00:00]} Qg3+ {[%emt 0:01:35]} 23. Kh1 {[%emt 0:00:00]} Kh7 {[%emt 0:03:44]} 24. Qf2 {[%emt 0:00:00]} Qg5 {[%emt 0:00:59]} 25. Bxb5 {[%emt 0:00:00]} Rh8 {[%emt 0:04:22]} 26. d6 {[%emt 0:00:00]} Be6 {[%emt 0:01:21]} 27. bxa7 {[%emt 0:00:00]} Kg8 {[%emt 0:01:31]} 28. Kh2 {[%emt 0:00:00]} Kf7 {[%emt 0:03:06]} 29. Bc4 {[%emt 0:00:00]} Bxc4 {[%emt 0:01:11]} 30. Qc5 {[%emt 0:00:00]} Be6 {[%emt 0:08:22]} 31. Qc7+ {[%emt 0:00:00]} Kf6 {[%emt 0:01:14]} 32. Qe7+ {[%emt 0:00:00]} Kf5 {[%emt 0:00:01]} 33. Qxg7 {[%emt 0:00:00]} Qg3+ {[%emt 0:01:29]} 34. Kh1 {[%emt 0:00:00]} Rag8 {[%emt 0:00:16]} 35. a8=Q {[%emt 0:00:00]} Rxa8 {[%emt 0:00:58]} 36. Rae1 {[%emt 0:00:00]} Rxh3+ {[%emt 0:01:37]} 1/2-1/2

[Event "FIDE WCCC Open-10 2024"]
[Site "Montesilvano"]
[Date "2024.11.26"]
[Round "11.40"]
[White "Kovacs, Balazs"]
[Black "Rama, Federico"]
[Result "1-0"]
[Annotator "NA RC"]
[ECO "B46"]
[WhiteElo "1871"]
[BlackElo "1564"]
[PlyCount "101"]
[EventDate "2024.11.18"]
[EventType "swiss"]
[EventCountry "ITA"]
[SourceTitle "playchess.com"]
[Source "ChessBase"]
[SourceQuality "1"]
[TimeControl "5400+30"]

1. e4 {[%emt 0:00:02]} c5 {[%emt 0:00:05]} 2. Nf3 {[%emt 0:00:06]} e6 {[%emt 0:00:05]} 3. d4 {[%emt 0:00:05]} cxd4 {[%emt 0:00:07]} 4. Nxd4 {[%emt 0:00:15]} Nc6 {[%emt 0:00:07]} 5. Nc3 {[%emt 0:00:04]} a6 {[%emt 0:00:29]} 6. a3 {[%emt 0:00:12]} Qc7 {[%emt 0:00:11]} 7. Nxc6 {[%emt 0:03:55]} bxc6 {[%emt 0:01:01]} 8. g3 {[%emt 0:09:25]} d5 {[%emt 0:00:20]} 9. Bg2 {[%emt 0:01:28]} Bd6 {[%emt 0:04:13]} 10. O-O {[%emt 0:04:34]} Nf6 {[%emt 0:00:37]} 11. Bg5 {[%emt 0:02:34]} Be5 {[%emt 0:06:01]} 12. Kh1 {[%emt 0:16:34]} O-O {[%emt 0:04:39]} 13. Qd2 {[%emt 0:08:56]} d4 {[%emt 0:19:46]} 14. Ne2 {[%emt 0:00:36]} c5 {[%emt 0:00:29]} 15. f4 {[%emt 0:00:34]} Bd6 {[%emt 0:05:40]} 16. e5 {[%emt 0:02:24]} Bxe5 {[%emt 0:00:56]} 17. fxe5 {[%emt 0:00:23]} Nd5 {[%emt 0:03:57]} 18. c4 {[%emt 0:11:40]} dxc3 {[%emt 0:01:25]} 19. Nxc3 {[%emt 0:00:20]} Qxe5 {[%emt 0:01:38]} 20. Nxd5 {[%emt 0:01:00]} exd5 {[%emt 0:00:46]} 21. Qxd5 {[%emt 0:00:15]} Qxd5 {[%emt 0:00:49]} 22. Bxd5 {[%emt 0:00:08]} Rb8 {[%emt 0:00:28]} 23. Be7 {[%emt 0:00:07]} Bb7 {[%emt 0:01:52]} 24. Bxb7 {[%emt 0:01:10]} Rfe8 {[%emt 0:00:16]} 25. Bxa6 {[%emt 0:03:19]} Rxe7 {[%emt 0:00:30]} 26. Rae1 {[%emt 0:03:28]} Rd7 {[%emt 0:01:19]} 27. Bc4 {[%emt 0:00:37]} h6 {[%emt 0:00:33]} 28. Rf2 {[%emt 0:01:52]} Rbd8 {[%emt 0:02:46]} 29. Rxf7 {[%emt 0:02:11]} Rxf7 {[%emt 0:00:53]} 30. Rf1 {[%emt 0:00:06]} Rdf8 {[%emt 0:00:45]} 31. Rxf7 {[%emt 0:00:15]} Rxf7 {[%emt 0:00:05]} 32. a4 {[%emt 0:00:04]} Kf8 {[%emt 0:00:30]} 33. Bxf7 {[%emt 0:00:05]} Ke7 {[%emt 0:00:28]} 34. a5 {[%emt 0:00:17]} Kd7 {[%emt 0:00:11]} 35. a6 {[%emt 0:00:13]} Kc7 {[%emt 0:00:05]} 36. Bc4 {[%emt 0:00:05]} Kb6 {[%emt 0:01:14]} 37. Kg2 {[%emt 0:00:08]} g5 {[%emt 0:00:32]} 38. Kf3 {[%emt 0:00:07]} h5 {[%emt 0:00:10]} 39. Ke4 {[%emt 0:00:12]} Kc6 {[%emt 0:00:48]} 40. Kf5 {[%emt 0:00:27]} h4 {[%emt 0:00:49]} 41. Kxg5 {[%emt 0:00:08]} hxg3 {[%emt 0:00:13]} 42. hxg3 {[%emt 0:00:04]} Kc7 {[%emt 0:00:15]} 43. Kf6 {[%emt 0:00:10]} Kc8 {[%emt 0:00:28]} 44. g4 {[%emt 0:00:08]} Kc7 {[%emt 0:00:08]} 45. g5 {[%emt 0:00:11]} Kb8 {[%emt 0:00:05]} 46. g6 {[%emt 0:00:04]} Ka8 {[%emt 0:00:36]} 47. g7 {[%emt 0:00:06]} Ka7 {[%emt 0:00:10]} 48. g8=Q {[%emt 0:00:10]} Kb6 {[%emt 0:00:15]} 49. Qb8+ {[%emt 0:00:07]} Kc6 {[%emt 0:00:18]} 50. b3 {[%emt 0:00:30]} Kd7 {[%emt 0:00:21]} 51. Bb5# {[%emt 0:00:03]} 1-0

[Event "FIDE WCCC Open-10 2024"]
[Site "Montesilvano"]
[Date "2024.11.26"]
[Round "11.44"]
[White "Nguyen, Huynh Minh Huy"]
[Black "Burba, Mikita"]
[Result "1/2-1/2"]
[Annotator "TA"]
[ECO "D60"]
[WhiteElo "2423"]
[BlackElo "1528"]
[PlyCount "104"]
[EventDate "2024.11.18"]
[EventType "swiss"]
[EventCountry "ITA"]
[SourceTitle "playchess.com"]
[Source "ChessBase"]
[SourceQuality "1"]
[TimeControl "5400+30"]

{[%evp 20,104,30,18,37,43,40,40,62,66,58,61,69,46,51,43,56,47,58,36,68,72,86,75,56,0,35,35,33,34,31,17,13,0,0,0,0,0,0,0,0,0,0,0,0,0,0,0,0,0,0,0,0,-14,0,0,0,0,0,0,0,0,0,-8,-8,-34,0,0,0,0,10,0,0,-34,-34,-34,-1,-7,0,-34,0,-34,0,-34,0,-34,0]} 1. d4 {[%emt 0:00:06]} d5 {[%emt 0:00:07]} 2. c4 {[%emt 0:00:06]} e6 {[%emt 0:00:15]} 3. Nf3 {[%emt 0:00:06]} Nf6 {[%emt 0:00:09]} 4. Nc3 {[%emt 0:00:06]} Nbd7 {[%emt 0:01:35]} 5. Bg5 {[%emt 0:00:16]} Be7 {[%emt 0:00:11]} 6. e3 {[%emt 0:00:06]} O-O {[%emt 0:00:12]} 7. Bd3 {[%emt 0:00:07]} dxc4 {[%emt 0:00:21]} 8. Bxc4 {[%emt 0:00:11]} c5 {[%emt 0:00:12]} 9. O-O {[%emt 0:00:20]} cxd4 {[%emt 0:00:33]} 10. Nxd4 {[%emt 0:00:16]} Nb6 {[%emt 0:03:24]} 11. Bb3 {[%emt 0:02:17]} Nbd5 {[%emt 0:03:21]} 12. Nxd5 {[%emt 0:01:08]} Nxd5 {[%emt 0:00:31]} 13. Bxe7 {[%emt 0:00:16]} Qxe7 {[%emt 0:01:27] White is slightly better.} 14. Bxd5 {[%emt 0:00:32]} exd5 {[%emt 0:00:08]} 15. Rc1 {[%emt 0:00:25]} Be6 {[%emt 0:05:02]} 16. Qd2 {[%emt 0:01:38] White is more active.} Rac8 {[%emt 0:04:08]} 17. Rfd1 {[%emt 0:06:41]} Rfd8 {[%emt 0:07:10]} 18. h3 {[%emt 0:03:27]} h6 {[%emt 0:03:09]} 19. Ne2 {[%emt 0:03:16]} Rc6 {[%emt 0:20:10]} 20. Qd4 {[%emt 0:06:33]} Ra8 {[%emt 0:12:46]} 21. Nf4 {[%emt 0:03:26]} Rac8 {[%emt 0:01:05]} 22. Ne2 {[%emt 0:09:26]} (22. Nxd5 $2 {perishes.} Bxd5 23. Rxc6 Bxc6 $19) (22. Rxc6 $14 bxc6 23. Qe5) 22... b6 {[%emt 0:13:34]} 23. Rxc6 {[%emt 0:04:18]} Rxc6 {[%emt 0:00:08]} 24. Nc3 {[%emt 0:00:33]} Qg5 {[%emt 0:04:01]} 25. h4 {[%emt 0:11:08]} Qh5 {[%emt 0:02:11] [#] Strongly threatening ...Rc4.} 26. Nxd5 {[%emt 0:01:00]} Bxd5 {[%emt 0:00:37]} 27. Qxd5 {[%emt 0:00:11]} Qxd5 {[%emt 0:00:09]} 28. Rxd5 $11 {[%emt 0:00:03][%mdl 4096] Endgame. KR-KR} Rc1+ {[%emt 0:00:06]} 29. Kh2 {[%emt 0:00:05]} Rc2 {[%emt 0:00:04][%csl LRb2,LRf2]} 30. Rd8+ {[%emt 0:01:02]} Kh7 {[%emt 0:00:07]} 31. Rd7 {[%emt 0:00:46][%csl LRa7,LRf7]} Rxf2 {[%emt 0:00:48]} 32. Rxa7 {[%emt 0:00:16]} Rxb2 {[%emt 0:00:07]} 33. a4 {[%emt 0:01:28]} Kg6 {[%emt 0:02:38]} 34. Kg3 {[%emt 0:00:09]} Rb4 {[%emt 0:00:49]} 35. Ra6 {[%emt 0:01:12]} f6 {[%emt 0:02:09]} 36. Ra7 {[%emt 0:01:09]} h5 {[%emt 0:03:12]} 37. Ra6 {[%emt 0:01:28]} Rg4+ {[%emt 0:02:07]} 38. Kf3 {[%emt 0:00:19]} Rxh4 {[%emt 0:01:52]} 39. e4 $1 {[%emt 0:00:12]} Rh1 {[%emt 0:00:10]} 40. Rxb6 {[%emt 0:00:13]} Ra1 {[%emt 0:01:33]} 41. Rb4 {[%emt 0:00:47]} Kh6 {[%emt 0:01:02]} 42. Rc4 {[%emt 0:06:07]} Kg6 {[%emt 0:00:40]} 43. g3 {[%emt 0:02:38]} Kh6 {[%emt 0:00:42]} 44. Kf4 {[%emt 0:02:36]} Rf1+ {[%emt 0:00:08]} 45. Ke3 {[%emt 0:00:06]} Rg1 {[%emt 0:01:13]} 46. Kf2 {[%emt 0:01:37]} Ra1 {[%emt 0:00:28]} 47. Rb4 {[%emt 0:03:46]} Kg6 {[%emt 0:01:46]} 48. Kf3 {[%emt 0:04:10]} Kh6 {[%emt 0:01:33]} 49. Rd4 {[%emt 0:02:36]} Kg6 {[%emt 0:00:31]} 50. Rc4 {[%emt 0:00:14]} Kh6 {[%emt 0:00:15]} 51. Rb4 {[%emt 0:00:13]} Kg6 {[%emt 0:00:08]} 52. Rc4 {[%emt 0:02:57]} Kh6 {[%emt 0:00:09] Weighted Error Value: White=0.09 (flawless) /Black=0.10 (very precise) .  Mistake:       	White=1     	---        Inaccurate:     	White=4     	Black=6      OK:         	White=14    	Black=8      Best:        	White=3     	Black=2      Strong:       	White=1     	---} 1/2-1/2

[Event "FIDE WCCC Open-10 2024"]
[Site "Montesilvano"]
[Date "2024.11.26"]
[Round "11.45"]
[White "Mikkelsen, Anders Askjaer"]
[Black "Shrubok, Herman"]
[Result "1/2-1/2"]
[Annotator "NA RC"]
[ECO "B07"]
[WhiteElo "1745"]
[BlackElo "1477"]
[PlyCount "73"]
[EventDate "2024.11.18"]
[EventType "swiss"]
[EventCountry "ITA"]
[SourceTitle "playchess.com"]
[Source "ChessBase"]
[SourceQuality "1"]
[TimeControl "5400+30"]

1. e4 {[%emt 0:00:35]} d6 {[%emt 0:01:17]} 2. d4 {[%emt 0:00:52]} Nf6 {[%emt 0:01:05]} 3. Nc3 {[%emt 0:00:29]} e5 {[%emt 0:01:02]} 4. dxe5 {[%emt 0:02:25]} dxe5 {[%emt 0:00:13]} 5. Qxd8+ {[%emt 0:01:08]} Kxd8 {[%emt 0:00:15]} 6. Bg5 {[%emt 0:01:46]} Be6 {[%emt 0:02:47]} 7. O-O-O+ {[%emt 0:02:20]} Kc8 {[%emt 0:01:29]} 8. Nf3 {[%emt 0:05:53]} Nbd7 {[%emt 0:02:28]} 9. Bd3 {[%emt 0:09:34]} c6 {[%emt 0:04:32]} 10. Ne2 {[%emt 0:07:15]} Bc5 {[%emt 0:03:37]} 11. Rhf1 {[%emt 0:00:32]} a5 {[%emt 0:02:08]} 12. a3 {[%emt 0:02:46]} b5 {[%emt 0:04:44]} 13. Nd2 {[%emt 0:01:23]} h6 {[%emt 0:02:31]} 14. Bxf6 {[%emt 0:02:28]} gxf6 {[%emt 0:01:41]} 15. f4 {[%emt 0:00:44]} Nb6 {[%emt 0:03:19]} 16. f5 {[%emt 0:02:49]} Bc4 {[%emt 0:02:34]} 17. Bxc4 {[%emt 0:00:33]} Nxc4 {[%emt 0:00:12]} 18. Nxc4 {[%emt 0:00:17]} bxc4 {[%emt 0:02:00]} 19. Rf3 {[%emt 0:01:48]} Kc7 {[%emt 0:02:38]} 20. Nc3 {[%emt 0:15:35]} Rhg8 {[%emt 0:04:15]} 21. g3 {[%emt 0:01:14]} Rad8 {[%emt 0:02:00]} 22. Nb1 {[%emt 0:02:06]} Rxd1+ {[%emt 0:04:53]} 23. Kxd1 {[%emt 0:00:10]} Bg1 {[%emt 0:01:09]} 24. Ke2 {[%emt 0:00:56]} Rb8 {[%emt 0:02:05]} 25. b3 {[%emt 0:01:24]} cxb3 {[%emt 0:00:09]} 26. Rxb3 {[%emt 0:00:21]} Rd8 {[%emt 0:00:14]} 27. h3 {[%emt 0:01:52]} Rd4 {[%emt 0:03:13]} 28. Nd2 {[%emt 0:02:33]} Ra4 {[%emt 0:01:36]} 29. Kf3 {[%emt 0:03:43]} Bc5 {[%emt 0:03:30]} 30. Nb1 {[%emt 0:01:43]} Rc4 {[%emt 0:00:55]} 31. Rc3 {[%emt 0:04:37]} Rxc3+ {[%emt 0:00:17]} 32. Nxc3 {[%emt 0:00:05]} Bxa3 {[%emt 0:00:14]} 33. Ke3 {[%emt 0:01:06]} Bb2 {[%emt 0:01:31]} 34. Na4 {[%emt 0:00:21]} Bd4+ {[%emt 0:00:35]} 35. Kd3 {[%emt 0:00:28]} c5 {[%emt 0:00:41]} 36. g4 {[%emt 0:00:39]} Kc6 {[%emt 0:01:16]} 37. Kc4 {[%emt 0:00:18]} 1/2-1/2

[Event "FIDE WCCC Open-10 2024"]
[Site "Montesilvano"]
[Date "2024.11.26"]
[Round "11.48"]
[White "Yao, Lucas Mason Pin Qian"]
[Black "Zilincan, Tomas"]
[Result "1-0"]
[Annotator "NA RC"]
[ECO "C01"]
[WhiteElo "1687"]
[BlackElo "1778"]
[PlyCount "49"]
[EventDate "2024.11.18"]
[EventType "swiss"]
[EventCountry "ITA"]
[SourceTitle "playchess.com"]
[Source "ChessBase"]
[SourceQuality "1"]
[TimeControl "5400+30"]

1. e4 {[%emt 0:00:03]} e6 {[%emt 0:00:03]} 2. d4 {[%emt 0:00:09]} d5 {[%emt 0:00:02]} 3. exd5 {[%emt 0:00:11]} exd5 {[%emt 0:00:07]} 4. Bf4 {[%emt 0:00:09]} Bd6 {[%emt 0:00:10]} 5. Qd2 {[%emt 0:00:16]} Ne7 {[%emt 0:00:13]} 6. Nc3 {[%emt 0:01:02]} c6 {[%emt 0:00:09]} 7. O-O-O {[%emt 0:02:53]} b5 {[%emt 0:01:22]} 8. Bd3 {[%emt 0:01:52]} a5 {[%emt 0:01:03]} 9. Nge2 {[%emt 0:02:22]} a4 {[%emt 0:01:18]} 10. f3 {[%emt 0:01:14]} Qc7 {[%emt 0:15:56]} 11. Rhe1 {[%emt 0:04:09]} Nd7 {[%emt 0:01:55]} 12. Bg5 {[%emt 0:07:36]} f6 {[%emt 0:00:13]} 13. Bf4 {[%emt 0:01:40]} Nb6 {[%emt 0:00:33]} 14. Bxd6 {[%emt 0:00:55]} Qxd6 {[%emt 0:01:13]} 15. Qf4 {[%emt 0:00:17]} Qb4 {[%emt 0:05:20]} 16. a3 {[%emt 0:00:53]} Qa5 {[%emt 0:00:38]} 17. Qd6 {[%emt 0:00:26]} Bd7 {[%emt 0:04:07]} 18. Nf4 {[%emt 0:02:42]} Nbc8 {[%emt 0:00:14]} 19. Rxe7+ {[%emt 0:09:49]} Nxe7 {[%emt 0:00:12]} 20. Re1 {[%emt 0:00:28]} O-O {[%emt 0:05:55]} 21. Rxe7 {[%emt 0:00:47]} Be8 {[%emt 0:02:25]} 22. Qe6+ {[%emt 0:00:43]} Kh8 {[%emt 0:00:31]} 23. Qf5 {[%emt 0:00:08]} g6 {[%emt 0:00:51]} 24. Qh3 {[%emt 0:00:31]} Qd8 {[%emt 0:00:51]} 25. Qxh7# {[%emt 0:00:09]} 1-0